[Event "FIDE World Rapid-ch Open 2018"]
[White "Carlsson, Pontus"]
[Black "Mamatov, Melis"]
[Site "St. Petersburg"]
[Round "5.95"]
[Annotator "ChessBase"]
[Result "1-0"]
[Date "2018.12.26"]
[WhiteElo "2463"]
[BlackElo "2223"]
[PlyCount "130"]
[TimeControl "900+10"]

1. e4 {[%emt 0:0:0]} c5 {[%emt 0:0:0]} 2. Nf3 {[%emt 0:0:0]} d6 {[%emt 0:0:0]} 3. Bb5+ {[%emt 0:0:3]} Nc6 {[%emt 0:0:0]} 4. Bxc6+ {[%emt 0:0:9]} bxc6 {[%emt 0:0:0]} 5. 0-0 {[%emt 0:0:3]} Bg4 {[%emt 0:0:0]} 6. h3 {[%emt 0:0:12]
} Bh5 {[%emt 0:0:0]} 7. c3 {[%emt 0:0:30]} e6 {[%emt 0:2:31]} 8. Re1 {[%emt 0:1:4]} Be7 {[%emt 0:0:43]} 9. d3 {[%emt 0:0:25]} Nf6 {[%emt 0:0:45]
} 10. Nbd2 {[%emt 0:0:2]} 0-0 {[%emt 0:0:10]} 11. Nf1 {[%emt 0:0:2]
} Nd7 {[%emt 0:0:33]} 12. Ng3 {[%emt 0:0:2]} Bg6 {[%emt 0:0:0]} 13. Be3 {[%emt 0:0:25]} e5 {[%emt 0:0:21]} 14. d4 {[%emt 0:0:7]} cxd4 {[%emt 0:0:49]} 15. cxd4 {[%emt 0:0:2]} Bf6 {[%emt 0:0:32]} 16. Qd2 {[%emt 0:0:24]
} Re8 {[%emt 0:0:15]} 17. dxe5 {[%emt 0:0:43]} Bxe5 {[%emt 0:0:0]} 18. Nxe5 {[%emt 0:0:16]} dxe5 {[%emt 0:3:19]} 19. Rad1 {[%emt 0:0:0]} Nb6 {[%emt 0:0:44]} 20. b3 {[%emt 0:1:7]} Qc7 {[%emt 0:0:46]} 21. Rc1 {[%emt 0:0:12]} Rac8 {[%emt 0:0:39]} 22. Qa5 {[%emt 0:0:13]} h5 {[%emt 0:0:0]} 23. f3 {[%emt 0:0:7]} f6 {[%emt 0:0:21]} 24. Rc3 {[%emt 0:0:9]} Qb7 {[%emt 0:0:52]
} 25. Rec1 {[%emt 0:0:15]} Red8 {[%emt 0:0:4]} 26. Kh2 {[%emt 0:1:12]
} Kh7 {[%emt 0:0:18]} 27. Qb4 {[%emt 0:0:11]} Qa6 {[%emt 0:0:0]} 28. a4 {[%emt 0:3:46]} Rd3 {[%emt 0:0:53]} 29. Rxd3 {[%emt 0:1:55]} Qxd3 {[%emt 0:0:2]} 30. Qc3 {[%emt 0:0:19]} Qd7 {[%emt 0:1:11]} 31. Rc2 {[%emt 0:0:51]
} Na8 {[%emt 0:1:43]} 32. b4 {[%emt 0:0:19]} Qb7 {[%emt 0:0:0]} 33. Qc5 {[%emt 0:0:17]} Rc7 {[%emt 0:0:7]} 34. a5 {[%emt 0:0:18]} a6 {[%emt 0:0:9]
} 35. Qd6 {[%emt 0:0:24]} Qc8 {[%emt 0:0:17]} 36. h4 {[%emt 0:0:0]} Be8 {[%emt 0:0:5]} 37. Nf5 {[%emt 0:0:6]} Rb7 {[%emt 0:0:7]} 38. Qf8 {[%emt 0:0:29]} Qe6 {[%emt 0:0:14]} 39. Rd2 {[%emt 0:0:20]} Rf7 {[%emt 0:0:13]
} 40. Qc5 {[%emt 0:0:11]} Rd7 {[%emt 0:0:10]} 41. Rxd7 {[%emt 0:1:25]
} Qxd7 {[%emt 0:0:4]} 42. Qf8 {[%emt 0:0:8]} Qf7 {[%emt 0:0:0]} 43. Qd6 {[%emt 0:0:5]} Nc7 {[%emt 0:0:11]} 44. Qd8 {[%emt 0:0:15]} Qd7 {[%emt 0:0:11]} 45. Qb8 {[%emt 0:0:14]} g6 {[%emt 0:0:9]} 46. Ng3 {[%emt 0:0:0]} Bf7 {[%emt 0:0:5]} 47. Qf8 {[%emt 0:0:23]} Ne6 {[%emt 0:0:16]} 48. Qa8 {[%emt 0:0:6]} Nc7 {[%emt 0:0:10]} 49. Qb7 {[%emt 0:0:3]} Be6 {[%emt 0:0:13]
} 50. Bb6 {[%emt 0:1:24]} Nb5 {[%emt 0:0:1]} 51. Qxa6 Qc8 52. Qxc8 {[%emt 0:0:7]} Bxc8 {[%emt 0:0:1]} 53. Kg1 {[%emt 0:0:21]} Ba6 {[%emt 0:0:25]
} 54. Ne2 {[%emt 0:0:13]} Kg7 {[%emt 0:0:16]} 55. Nc1 {[%emt 0:0:0]} Nc3 {[%emt 0:0:6]} 56. Nb3 {[%emt 0:0:5]} Na4 {[%emt 0:0:2]} 57. Kf2 {[%emt 0:0:19]} Kf7 {[%emt 0:0:4]} 58. Bd8 {[%emt 0:0:4]} f5 {[%emt 0:0:0]} 59. g3 {[%emt 0:0:11]} Ke6 {[%emt 0:0:5]} 60. Ke3 {[%emt 0:0:11]} Bc4 {[%emt 0:0:11]} 61. Nd2 {[%emt 0:0:7]} Ba6 {[%emt 0:0:8]} 62. Bc7 {[%emt 0:0:13]
} c5 {[%emt 0:0:26]} 63. bxc5 {[%emt 0:0:12]} Nxc5 {[%emt 0:0:0]} 64. Bb6 {[%emt 0:0:8]} Nb7 {[%emt 0:0:20]} 65. f4 {[%emt 0:0:17]} exf4+ {[%emt 0:0:22]} 1-0

[Event "FIDE World Rapid-ch Open 2018"]
[White "Hirneise, Tobias"]
[Black "Hakobyan, Aram"]
[Site "St. Petersburg"]
[Round "5.96"]
[Annotator "ChessBase"]
[Result "1/2-1/2"]
[Date "2018.12.26"]
[WhiteElo "2464"]
[BlackElo "2545"]
[PlyCount "46"]
[TimeControl "900+10"]

1. e4 {[%emt 0:0:0]} c6 {[%emt 0:0:0]} 2. d4 {[%emt 0:0:2]} d5 {[%emt 0:0:0]} 3. exd5 {[%emt 0:0:17]} cxd5 {[%emt 0:0:0]} 4. c4 {[%emt 0:0:34]} Nf6 {[%emt 0:0:0]} 5. Nc3 {[%emt 0:0:2]} Nc6 {[%emt 0:0:42]} 6. Nf3 {[%emt 0:0:21]
} Bg4 {[%emt 0:0:8]} 7. cxd5 {[%emt 0:0:6]} Nxd5 {[%emt 0:0:0]} 8. Qb3 {[%emt 0:0:9]} Bxf3 {[%emt 0:0:16]} 9. gxf3 {[%emt 0:0:3]} Nb6 {[%emt 0:0:6]} 10. Be3 {[%emt 0:1:10]} e6 {[%emt 0:0:5]} 11. 0-0-0 {[%emt 0:0:6]
} Be7 {[%emt 0:0:7]} 12. d5 {[%emt 0:0:49]} exd5 {[%emt 0:0:0]} 13. Nxd5 {[%emt 0:0:1]} Nxd5 {[%emt 0:0:2]} 14. Rxd5 {[%emt 0:0:2]} Qc7 {[%emt 0:0:6]} 15. Kb1 {[%emt 0:0:4]} 0-0 {[%emt 0:0:4]} 16. Be2 {[%emt 0:0:45]
} Rad8 {[%emt 0:0:19]} 17. Rhd1 {[%emt 0:0:31]} Rxd5 {[%emt 0:0:0]} 18. Rxd5 {[%emt 0:0:4]} Bf6 {[%emt 0:0:3]} 19. f4 {[%emt 0:0:45]} g6 {[%emt 0:0:19]} 20. Bf3 {[%emt 0:0:30]} Kg7 {[%emt 0:0:20]} 21. Qd1 {[%emt 0:1:23]
} Nb4 {[%emt 0:0:47]} 22. Rc5 {[%emt 0:1:30]} Nc6 {[%emt 0:0:0]} 23. Rd5 {[%emt 0:0:30]} Nb4 {[%emt 0:0:38]} 1/2-1/2

[Event "FIDE World Rapid-ch Open 2018"]
[White "Vishnu Prasanna. V"]
[Black "Abdusattorov, Nodirbek"]
[Site "St. Petersburg"]
[Round "5.97"]
[Annotator "ChessBase"]
[Result "0-1"]
[Date "2018.12.26"]
[WhiteElo "2518"]
[BlackElo "2546"]
[PlyCount "90"]
[TimeControl "900+10"]

1. Nf3 {[%emt 0:0:0]} Nf6 {[%emt 0:0:0]} 2. g3 {[%emt 0:0:0]} b6 {[%emt 0:0:0]
} 3. Bg2 {[%emt 0:0:1]} Bb7 {[%emt 0:0:2]} 4. 0-0 {[%emt 0:0:0]} e6 {[%emt 0:0:1]} 5. d3 {[%emt 0:0:2]} d5 {[%emt 0:0:4]} 6. c4 {[%emt 0:0:1]
} Be7 {[%emt 0:0:12]} 7. cxd5 {[%emt 0:0:30]} exd5 {[%emt 0:0:0]} 8. Nc3 {[%emt 0:0:18]} 0-0 {[%emt 0:0:8]} 9. Nd4 {[%emt 0:0:22]} Re8 {[%emt 0:0:39]
} 10. Nf5 {[%emt 0:1:17]} Bf8 {[%emt 0:0:3]} 11. Bg5 {[%emt 0:0:0]} h6 {[%emt 0:0:24]} 12. Bf4 {[%emt 0:0:4]} Na6 {[%emt 0:0:41]} 13. Rc1 {[%emt 0:0:41]} c6 {[%emt 0:0:34]} 14. e4 {[%emt 0:0:28]} d4 {[%emt 0:0:0]} 15. Nb1 {[%emt 0:0:27]} c5 {[%emt 0:0:16]} 16. g4 {[%emt 0:0:7]} Nc7 {[%emt 0:0:54]} 17. Nxd4 {[%emt 0:2:58]} Qxd4 {[%emt 0:0:21]} 18. Bxc7 {[%emt 0:0:2]
} Qd7 {[%emt 0:0:19]} 19. Bg3 {[%emt 0:0:27]} Nxg4 {[%emt 0:0:0]} 20. Nc3 {[%emt 0:1:31]} Rad8 {[%emt 0:0:6]} 21. d4 {[%emt 0:1:38]} cxd4 {[%emt 0:1:7]} 22. Nd5 {[%emt 0:0:2]} Bxd5 {[%emt 0:0:46]} 23. exd5 {[%emt 0:0:2]
} Nf6 {[%emt 0:0:2]} 24. Qxd4 {[%emt 0:1:5]} Bc5 {[%emt 0:0:0]} 25. Qc4 {[%emt 0:0:35]} Qf5 {[%emt 0:0:18]} 26. b4 {[%emt 0:0:32]} Bd6 {[%emt 0:0:8]} 27. Rfe1 {[%emt 0:0:7]} Rxe1+ {[%emt 0:1:28]} 28. Rxe1 {[%emt 0:0:2]
} Qd7 {[%emt 0:0:52]} 29. a3 {[%emt 0:0:28]} Re8 {[%emt 0:0:0]} 30. Rxe8+ {[%emt 0:0:39]} Nxe8 {[%emt 0:0:2]} 31. f4 {[%emt 0:0:6]} Nf6 {[%emt 0:0:22]} 32. Bf3 {[%emt 0:0:17]} Qf5 {[%emt 0:0:17]} 33. Kg2 {[%emt 0:0:21]
} h5 {[%emt 0:0:35]} 34. Qe2 {[%emt 0:0:34]} Nxd5 {[%emt 0:0:0]} 35. Qe8+ {[%emt 0:0:57]} Bf8 {[%emt 0:0:1]} 36. Be4 {[%emt 0:0:6]} Nxf4+ {[%emt 0:0:27]} 37. Kf2 {[%emt 0:0:47]} Qf6 {[%emt 0:0:16]} 38. Bxf4 {[%emt 0:1:24]
} Qxf4+ {[%emt 0:0:3]} 39. Kg2 {[%emt 0:0:1]} g6 {[%emt 0:0:0]} 40. Bc6 {[%emt 0:0:22]} Qd2+ {[%emt 0:0:24]} 41. Kg1 {[%emt 0:0:17]} Qc1+ {[%emt 0:0:4]} 42. Kg2 {[%emt 0:0:2]} Qxa3 {[%emt 0:0:11]} 43. b5 {[%emt 0:0:4]
} Qb2+ {[%emt 0:0:2]} 44. Kh3 {[%emt 0:0:1]} Qc3+ {[%emt 0:0:0]} 45. Kg2 {[%emt 0:0:2]} Kg7 {[%emt 0:0:5]} 0-1

[Event "FIDE World Rapid-ch Open 2018"]
[White "Al Turky, Fahad A"]
[Black "Masrahi, Abdulrahman A"]
[Site "St. Petersburg"]
[Round "5.98"]
[Annotator "NA"]
[Result "0-1"]
[Date "2018.12.26"]
[WhiteElo "1836"]
[BlackElo "1903"]
[PlyCount "64"]
[TimeControl "900+10"]

1. e4 {[%emt 0:0:0]} e5 {[%emt 0:0:0]} 2. f4 {[%emt 0:0:0]} exf4 {[%emt 0:0:0]
} 3. Nf3 {[%emt 0:0:0]} g5 {[%emt 0:0:0]} 4. Bc4 {[%emt 0:0:0]} g4 {[%emt 0:0:0]} 5. Bxf7+ {[%emt 0:1:48]} Kxf7 {[%emt 0:0:2]} 6. Ne5+ {[%emt 0:0:1]} Ke8 {[%emt 0:1:10]} 7. Qxg4 {[%emt 0:0:35]} Nf6 {[%emt 0:2:47]
} 8. Qxf4 {[%emt 0:0:35]} d6 {[%emt 0:0:58]} 9. Nf3 {[%emt 0:0:0]} Qe7 {[%emt 0:0:48]} 10. 0-0 {[%emt 0:0:40]} Bg7 {[%emt 0:0:23]} 11. Nc3 {[%emt 0:0:39]} Rf8 {[%emt 0:0:56]} 12. Qh4 {[%emt 0:1:0]} Bg4 {[%emt 0:1:34]
} 13. e5 {[%emt 0:2:33]} Bxf3 {[%emt 0:1:40]} 14. Rxf3 {[%emt 0:1:52]
} dxe5 {[%emt 0:0:7]} 15. d3 {[%emt 0:0:30]} Nbd7 {[%emt 0:0:0]} 16. Bg5 {[%emt 0:0:20]} Qc5+ {[%emt 0:1:10]} 17. Be3 {[%emt 0:0:26]} Qd6 {[%emt 0:0:50]} 18. Raf1 {[%emt 0:0:51]} c6 {[%emt 0:0:38]} 19. Bg5 {[%emt 0:1:36]
} Qd4+ {[%emt 0:0:9]} 20. Qxd4 {[%emt 0:0:35]} exd4 {[%emt 0:0:0]} 21. Re1+ {[%emt 0:0:5]} Kf7 {[%emt 0:0:17]} 22. Ne4 {[%emt 0:0:6]} Kg8 {[%emt 0:0:32]} 23. Nd6 {[%emt 0:0:36]} Nd5 {[%emt 0:1:16]} 24. Rg3 {[%emt 0:0:33]
} Kh8 {[%emt 0:0:12]} 25. a3 {[%emt 0:1:0]} Be5 {[%emt 0:0:0]} 26. Rxe5 {[%emt 0:0:58]} Nxe5 {[%emt 0:0:7]} 27. b3 {[%emt 0:0:26]} Nf7 {[%emt 0:0:23]} 28. Nxb7 {[%emt 0:0:17]} Nxg5 {[%emt 0:0:4]} 29. Rxg5 {[%emt 0:0:1]
} Rae8 {[%emt 0:0:6]} 30. h3 {[%emt 0:0:10]} Rg8 {[%emt 0:0:0]} 31. Rf5 {[%emt 0:0:25]} Rxg2+ {[%emt 0:0:6]} 32. Kh1 {[%emt 0:0:32]} Rxc2 {[%emt 0:0:14]} 0-1

[Event "FIDE World Rapid-ch Open 2018"]
[White "Rechlis, Gad"]
[Black "Teterev, Vitaly"]
[Site "St. Petersburg"]
[Round "5.99"]
[Annotator "ChessBase"]
[Result "0-1"]
[Date "2018.12.26"]
[WhiteElo "2521"]
[BlackElo "2486"]
[PlyCount "74"]
[TimeControl "900+10"]

1. e4 {[%emt 0:0:0]} c5 {[%emt 0:0:0]} 2. Nc3 {[%emt 0:0:0]} d6 {[%emt 0:0:0]} 3. f4 {[%emt 0:0:0]} Nc6 {[%emt 0:0:18]} 4. Nf3 {[%emt 0:0:2]} g6 {[%emt 0:0:28]} 5. Bb5 {[%emt 0:1:16]} Bg7 {[%emt 0:0:30]} 6. Bxc6+ {[%emt 0:0:7]
} bxc6 {[%emt 0:0:2]} 7. 0-0 {[%emt 0:0:2]} Nh6 {[%emt 0:0:0]} 8. d3 {[%emt 0:1:8]} 0-0 {[%emt 0:0:50]} 9. Kh1 {[%emt 0:4:46]} f6 {[%emt 0:0:38]
} 10. Be3 {[%emt 0:0:27]} Rb8 {[%emt 0:0:21]} 11. Rb1 {[%emt 0:0:0]} Ng4 {[%emt 0:1:13]} 12. Bg1 {[%emt 0:0:23]} e5 {[%emt 0:0:31]} 13. h3 {[%emt 0:0:30]} Nh6 {[%emt 0:0:5]} 14. Bh2 {[%emt 0:0:13]} Nf7 {[%emt 0:0:0]} 15. a3 {[%emt 0:0:5]} Be6 {[%emt 0:1:17]} 16. b4 {[%emt 0:0:28]} cxb4 {[%emt 0:0:14]} 17. axb4 {[%emt 0:0:1]} exf4 {[%emt 0:1:52]} 18. Bxf4 {[%emt 0:0:6]} f5 {[%emt 0:0:8]} 19. Qd2 {[%emt 0:0:16]} a5 {[%emt 0:0:0]} 20. b5 {[%emt 0:1:41]} fxe4 {[%emt 0:0:10]} 21. dxe4 {[%emt 0:2:15]} cxb5 {[%emt 0:0:45]} 22. Nd4 {[%emt 0:0:45]} Bc4 {[%emt 0:2:9]} 23. Nc6 {[%emt 0:0:46]
} Qe8 {[%emt 0:1:24]} 24. Nxb8 {[%emt 0:0:51]} Bxf1 {[%emt 0:0:0]} 25. Na6 {[%emt 0:0:22]} Bxc3 {[%emt 0:0:57]} 26. Qe3 {[%emt 0:0:38]} b4 {[%emt 0:1:29]} 27. Rxf1 {[%emt 0:0:1]} Qb5 {[%emt 0:0:1]} 28. Qd3 {[%emt 0:1:14]
} Qxd3 {[%emt 0:0:2]} 29. cxd3 {[%emt 0:0:1]} Ne5 {[%emt 0:0:0]} 30. h4 {[%emt 0:0:34]} Nxd3 {[%emt 0:0:23]} 31. g3 {[%emt 0:0:1]} b3 {[%emt 0:0:11]} 32. Nc7 {[%emt 0:0:2]} b2 {[%emt 0:0:7]} 33. Nb5 {[%emt 0:0:14]
} Be1 {[%emt 0:0:25]} 34. Na3 {[%emt 0:0:5]} Bxg3 {[%emt 0:0:0]} 35. Rf3 {[%emt 0:0:1]} Rxf4 {[%emt 0:0:48]} 36. Rxg3 {[%emt 0:0:31]} Rf1+ {[%emt 0:0:9]} 37. Kg2 {[%emt 0:0:4]} Ra1 {[%emt 0:0:5]} 0-1

[Event "FIDE World Rapid-ch Open 2018"]
[White "Fakhrutdinov, Timur"]
[Black "khayat, Abdullah F"]
[Site "St. Petersburg"]
[Round "5.100"]
[Annotator "ChessBase"]
[Result "1-0"]
[Date "2018.12.26"]
[WhiteElo "2481"]
[BlackElo "1723"]
[PlyCount "53"]
[TimeControl "900+10"]

1. e4 {[%emt 0:0:0]} d5 {[%emt 0:0:0]} 2. exd5 {[%emt 0:0:0]} Qxd5 {[%emt 0:0:10]
} 3. Nc3 {[%emt 0:0:0]} Qa5 {[%emt 0:0:3]} 4. Bc4 {[%emt 0:0:0]} Bf5 {[%emt 0:0:14]} 5. d3 {[%emt 0:2:11]} c6 {[%emt 0:0:5]} 6. Bd2 {[%emt 0:0:8]} Qc7 {[%emt 0:0:2]} 7. Qf3 {[%emt 0:0:39]} e6 {[%emt 0:0:0]} 8. Nge2 {[%emt 0:0:19]} Nf6 {[%emt 0:0:9]} 9. h3 {[%emt 0:0:17]} h6 {[%emt 0:0:4]
} 10. g4 {[%emt 0:0:38]} Bh7 {[%emt 0:0:12]} 11. 0-0-0 {[%emt 0:0:27]
} Nbd7 {[%emt 0:0:3]} 12. Qg2 {[%emt 0:0:11]} Bd6 {[%emt 0:0:0]} 13. f4 {[%emt 0:0:16]} 0-0-0 {[%emt 0:0:4]} 14. Rhf1 {[%emt 0:0:39]} Nb6 {[%emt 0:0:25]} 15. Bb3 {[%emt 0:0:5]} g5 {[%emt 0:1:1]} 16. fxg5 {[%emt 0:0:17]
} Nfd5 {[%emt 0:1:1]} 17. gxh6 {[%emt 0:0:8]} Be5 {[%emt 0:0:0]} 18. d4 {[%emt 0:0:45]} Bd6 {[%emt 0:0:46]} 19. Ne4 {[%emt 0:0:7]} Bb4 {[%emt 0:0:38]} 20. Bxb4 {[%emt 0:0:58]} Nxb4 {[%emt 0:0:7]} 21. Ng5 {[%emt 0:0:7]
} Rdf8 {[%emt 0:1:6]} 22. Nf4 {[%emt 0:0:50]} N4d5 {[%emt 0:0:0]} 23. Bxd5 {[%emt 0:0:52]} Nxd5 {[%emt 0:0:19]} 24. Nxh7 {[%emt 0:0:0]} Nxf4 {[%emt 0:1:5]} 25. Qe4 {[%emt 0:0:14]} Rxh7 {[%emt 0:3:7]} 26. Qxh7 {[%emt 0:0:12]} Ng6 {[%emt 0:2:42]} 27. Qxg6 {[%emt 0:0:5]} 1-0